bitfinex/quotes_ETHUSD_20250424
["timestamp","ask_amount","ask_price","bid_price","bid_amount"]
[1745456378910,4.794,1789.8,1789.6,0.15246028]
[1745456379230,10.38124377,1789.8,1789.6,0.15246028]
[1745456380233,4.794,1789.8,1789.6,0.15246028]
[1745456381935,10.38126984,1789.8,1789.6,0.15246028]
[1745456382433,5.58752863,1789.7,1789.6,0.15246028]
[1745456382635,5.58806292,1789.6,1789.3,4.71176647]
[1745456382854,5.58817499,1789.5,1789.4,0.15128539]
[1745456383051,5.58806292,1789.6,1789.4,0.15128539]
[1745456383052,12.05984559,1789.8,1789.4,0.94758539]
[1745456383262,5.58755627,1789.7,1789.5,3.91546647]
[1745456383757,5.58755627,1789.7,1789.6,0.15135066]
[1745456384714,12.05962651,1789.8,1789.6,0.97975066]
[1745456384916,10.38124016,1789.8,1789.6,0.97975066]
[1745456385222,4.794,1789.8,1789.6,0.97975066]
[1745456385616,10.38123793,1789.8,1789.6,0.15135066]
[1745456387454,5.58752863,1789.7,1789.6,0.15135066]
[1745456387655,10.38140489,1789.8,1789.6,0.15135066]
[1745456389999,15.96891726,1789.8,1789.6,0.15135066]
[1745456390297,10.38140489,1789.8,1789.6,0.15135066]
[1745456390458,5.58752863,1789.7,1789.6,0.15135066]
[1745456394575,6.39872863,1789.7,1789.6,0.15135066]
[1745456395386,5.58785315,1789.6,1789.4,3.0]
[1745456397732,5.58848406,1789.4,1789.2,0.8284]
[1745456397891,5.58848406,1789.4,1789.1,4.74386647]
[1745456398095,5.58847665,1789.4,1789.1,5.21825312]
[1745456398409,11.1765816,1789.5,1789.1,5.21825312]
[1745456399324,0.8112,1789.7,1789.3,3.91546647]
[1745456399501,5.58796587,1789.6,1789.3,3.91546647]
[1745456400419,4.794,1789.8,1789.5,3.91546647]
[1745456400420,10.38137848,1789.8,1789.5,3.91546647]
[1745456401426,15.96888117,1789.8,1789.5,3.91546647]
[1745456401628,5.58766115,1789.7,1789.5,3.91546647]
[1745456401811,10.38134997,1789.8,1789.5,3.91546647]
[1745456402120,6.38485103,1790.0,1789.7,3.91546647]
[1745456402294,3.73248921,1790.1,1789.9,3.91546647]
[1745456402498,3.73248921,1790.1,1789.2,3.91546647]
[1745456402499,5.58717131,1789.9,1789.7,0.7763]
[1745456402831,5.58872484,1789.4,1788.8,0.7763]
[1745456403003,0.55887248,1789.3,1788.8,0.7763]
[1745456403189,5.58891013,1789.3,1789.0,3.0]
[1745456403525,10.37962689,1789.4,1788.8,0.7763]
[1745456403727,5.58962585,1789.1,1788.8,0.7763]
[1745456404028,10.37957649,1789.4,1788.9,3.91546647]
[1745456404029,10.37965155,1789.4,1788.9,3.91546647]
[1745456404341,12.05626557,1789.4,1789.1,3.91546647]
[1745456404514,6.38638263,1789.5,1789.1,3.91546647]
[1745456404717,4.792,1789.5,1789.3,3.91546647]
[1745456404923,10.38036663,1789.5,1789.3,3.91546647]
[1745456405125,4.792,1789.5,1789.3,3.91546647]
[1745456406040,4.792,1789.8,1789.4,3.7763]
[1745456406192,4.792,1789.8,1789.6,3.91546647]
[1745456406394,4.792,1789.8,1789.7,0.7763]
[1745456406809,5.58610026,1790.2,1789.7,0.7763]
[1745456407015,10.37831438,1790.1,1789.9,3.91546647]
[1745456407557,4.792,1790.1,1789.9,3.91546647]
[1745456408209,10.37830048,1790.1,1789.9,3.91546647]
[1745456408430,5.58659217,1790.0,1789.7,4.69176647]
[1745456408616,4.792,1790.1,1789.7,4.69176647]
[1745456408617,10.37846678,1790.1,1789.7,4.69176647]
[1745456408812,5.58664312,1790.0,1789.7,4.69176647]
[1745456409632,11.97488052,1790.1,1789.7,4.69176647]
[1745456409817,10.37842242,1790.1,1789.7,4.69176647]
[1745456410641,4.792,1790.1,1789.7,4.69176647]
[1745456410815,10.37831897,1790.1,1789.7,4.69176647]
[1745456411215,5.58659247,1790.0,1789.7,4.69176647]
[1745456411415,10.37843747,1790.1,1789.7,0.7763]
[1745456411631,11.17359775,1790.0,1789.7,0.7763]
[1745456411841,5.58672068,1790.0,1789.7,0.7763]
[1745456412042,5.58752863,1789.7,1789.5,3.91546647]
[1745456412257,5.58784085,1789.6,1789.4,3.91546647]
[1745456412459,5.58732044,1789.8,1789.4,3.91546647]
[1745456413246,5.5871107,1789.9,1789.6,4.69176647]
[1745456413779,5.58601968,1790.2,1789.8,3.91546647]
[1745456413780,5.58609436,1790.2,1789.8,3.91546647]
[1745456413935,4.79,1790.2,1789.9,3.0]
[1745456414270,4.79,1790.2,1790.0,3.91546647]
[1745456415670,4.79,1790.2,1790.1,0.13428972]
[1745456418054,27.2284575,1790.4,1790.1,0.13428972]
[1745456418249,21.643,1790.4,1790.1,0.13428972]
[1745456418692,27.22840664,1790.4,1790.1,0.13428972]
[1745456420105,21.643,1790.4,1790.1,0.13428972]
[1745456420264,4.889,1790.4,1790.2,4.73816647]
[1745456420669,4.889,1790.4,1790.3,0.13291975]
[1745456422500,10.47434405,1790.4,1790.3,0.13291975]
[1745456422701,11.29894405,1790.4,1790.3,0.13291975]
[1745456422912,5.58597204,1790.2,1790.0,4.73816647]
[1745456423069,5.58577029,1790.3,1790.1,0.13102794]
[1745456424170,5.58596804,1790.2,1790.1,0.13102794]
[1745456424673,5.58645984,1790.1,1789.8,4.73816647]
[1745456424883,5.58645984,1790.1,1789.9,0.13200637]
[1745456425213,5.58645984,1790.1,1789.8,4.73816647]
[1745456425420,5.58645984,1790.1,1790.0,0.13200637]
[1745456425708,5.58645984,1790.1,1789.8,4.73816647]
[1745456425916,5.58645984,1790.1,1790.0,0.13200637]
[1745456426071,5.58645984,1790.1,1789.8,4.73816647]
[1745456426268,5.58599485,1790.2,1790.0,0.13200637]
[1745456426514,5.58628965,1790.1,1789.8,4.73816647]
[1745456426869,5.58611543,1790.2,1789.8,4.73816647]
[1745456427896,5.58583873,1790.3,1790.0,3.91546647]
[1745456428296,11.29909964,1790.4,1790.0,3.91546647]
[1745456428297,11.29896324,1790.4,1790.0,3.91546647]
[1745456429227,16.88455132,1790.4,1790.0,3.91546647]
[1745456429394,11.29896324,1790.4,1790.0,3.91546647]
[1745456429592,5.7136,1790.4,1790.0,3.91546647]
[1745456429802,11.29912886,1790.4,1790.0,3.91546647]
[1745456430205,11.29912886,1790.4,1790.1,0.13148452]
[1745456430428,12.98756061,1790.4,1790.1,0.13148452]
[1745456431024,5.58567137,1790.3,1790.1,0.13148452]
[1745456431330,4.788,1790.3,1790.2,3.91546647]
[1745456431521,0.1,1790.4,1790.2,3.91546647]
[1745456431734,0.1,1790.4,1790.3,0.13148452]
[1745456433623,5.68534405,1790.4,1790.3,0.13148452]
[1745456433822,5.58578369,1790.3,1790.0,3.91546647]
[1745456434035,5.58578369,1790.3,1789.9,4.68596647]
[1745456434412,5.58565603,1790.3,1789.9,4.68596647]
[1745456435342,0.1,1790.4,1790.1,3.91546647]
[1745456435751,4.888,1790.4,1790.1,3.91546647]
[1745456437463,0.1,1790.4,1790.2,0.7705]
[1745456437630,0.1,1790.4,1790.3,3.91546647]
[1745456440826,0.1,1790.4,1790.2,0.7705]
[1745456441752,0.1,1790.4,1790.1,3.91546647]
[1745456441915,0.1,1790.4,1790.1,4.70986647]
[1745456442120,0.1,1790.4,1790.2,0.47098665]
[1745456445162,0.1,1790.4,1790.3,0.12711505]
[1745456445850,0.1,1790.4,1790.1,4.70986647]
[1745456446068,0.1,1790.4,1790.3,0.12711505]
[1745456446502,0.1,1790.4,1790.1,4.70986647]
[1745456446704,0.1,1790.4,1790.2,0.5981017]
[1745456447874,0.08994526,1790.4,1790.2,0.5981017]
[1745456448309,0.08994526,1790.4,1790.3,13.3003225]
[1745456448600,0.08994526,1790.4,1790.3,13.42750276]
[1745456450110,0.08994526,1790.4,1790.3,7.84184673]
[1745456450311,0.08994526,1790.4,1790.3,9.23171335]
[1745456450497,0.08994526,1790.4,1790.3,6.23171335]
[1745456450702,0.08994526,1790.4,1790.3,4.84184673]
[1745456451219,0.08994526,1790.4,1790.3,4.04264673]
[1745456453422,0.08994526,1790.4,1790.3,4.84184673]
[1745456453712,0.08994526,1790.4,1790.3,7.84184673]
[1745456454777,0.08994526,1790.4,1790.3,0.12718026]
[1745456455019,0.08994526,1790.4,1790.2,3.0]
[1745456455219,0.08994526,1790.4,1790.3,0.12568063]
[1745456460514,6.44888931,1790.4,1790.3,0.12568063]
[1745456460714,8.20229989,1790.4,1790.3,0.12568063]
[1745456460920,6.36028023,1790.0,1789.6,4.73356647]
[1745456461135,0.7736,1790.0,1789.7,0.11648956]
[1745456461337,0.7736,1790.0,1789.6,4.73356647]
[1745456461639,0.7736,1790.0,1789.7,0.58984621]
[1745456462052,7.42873738,1790.4,1789.9,0.8181]
[1745456462053,6.35926793,1790.3,1789.9,0.8181]
[1745456462221,5.58611927,1790.2,1789.8,3.91546647]
[1745456462548,5.58630977,1790.1,1789.9,0.11648956]
[1745456462752,5.58632936,1790.1,1789.8,3.91546647]
[1745456462908,5.58632936,1790.1,1789.9,0.11648956]
[1745456463109,5.58632936,1790.1,1789.8,3.91546647]
[1745456463351,5.58632936,1790.1,1789.9,0.11648956]
[1745456463644,5.58632936,1790.1,1789.8,3.91546647]
[1745456463845,5.58618296,1790.2,1790.0,0.11648956]
[1745456464045,11.80842921,1790.2,1789.8,3.91546647]
[1745456464211,6.22216126,1790.2,1790.1,0.11648956]
[1745456464412,5.58629197,1790.1,1789.8,3.91546647]
[1745456465922,11.8083679,1790.2,1789.8,3.91546647]
[1745456466341,0.6359783,1790.2,1789.8,3.91546647]
[1745456467546,5.58628213,1790.1,1789.8,3.91546647]
[1745456468234,6.2221617,1790.2,1789.8,3.91546647]
[1745456468435,5.58669707,1790.0,1789.7,3.91546647]
[1745456468653,5.58669707,1790.0,1789.5,4.73356647]
[1745456468945,5.58692269,1789.9,1789.6,3.0]
[1745456469148,0.7736,1789.8,1789.6,3.0]
[1745456469951,6.20865255,1790.1,1789.6,3.0]
[1745456470260,0.7736,1790.0,1789.7,3.91546647]
[1745456471151,5.58643638,1790.1,1789.7,3.91546647]
[1745456471152,6.36003638,1790.1,1789.7,3.91546647]
[1745456471453,0.7736,1790.1,1789.7,4.60701312]
[1745456471757,6.35998149,1790.1,1789.7,4.60701312]
[1745456471955,6.35998149,1790.1,1789.7,3.91546647]
[1745456472320,0.7736,1790.1,1789.7,3.91546647]
[1745456474057,6.35988855,1790.1,1789.7,3.91546647]
[1745456475125,6.35988855,1790.1,1789.8,0.12385988]
[1745456476346,6.40293455,1790.3,1789.8,0.94655988]
[1745456476547,7.05222253,1790.3,1789.9,3.91546647]
[1745456476726,12.63811863,1790.3,1790.0,0.12333792]
[1745456477254,7.05222253,1790.3,1790.0,0.12333792]
[1745456477555,12.63814904,1790.3,1790.0,0.12333792]
[1745456477760,5.58617405,1790.2,1790.0,0.12333792]
[1745456478056,6.29143025,1790.2,1790.0,0.12333792]
[1745456482155,0.7052562,1790.2,1790.0,0.12333792]
[1745456482348,5.58612525,1790.2,1790.0,0.12333792]
[1745456483237,11.17238362,1790.2,1790.0,0.12333792]
[1745456483436,5.58628009,1790.1,1790.0,0.12333792]
[1745456483646,6.40338009,1790.1,1790.0,0.12333792]
[1745456483967,5.58705426,1789.9,1789.6,0.8227]
[1745456484136,11.17422035,1789.9,1789.7,0.12301172]
[1745456484336,5.58752863,1789.7,1789.4,0.8227]
[1745456484540,5.58815311,1789.5,1789.2,0.8227]
[1745456484774,5.58815311,1789.5,1789.2,4.73816647]
[1745456484992,5.58799139,1789.6,1789.2,5.21198312]
[1745456486093,5.58827754,1789.5,1789.2,5.21198312]
[1745456486260,6.40445808,1789.8,1789.4,3.91546647]
[1745456486445,5.58708228,1789.9,1789.6,3.91546647]
[1745456486643,0.55870823,1789.8,1789.6,3.91546647]
[1745456486845,6.4032658,1790.2,1789.7,0.8227]
[1745456487175,5.58629657,1790.1,1789.9,3.91546647]
[1745456487554,5.58630914,1790.1,1789.9,3.91546647]
[1745456487940,6.40325933,1790.2,1789.9,3.91546647]
[1745456488343,5.58721644,1789.8,1789.7,0.8227]
[1745456488543,5.587094,1789.9,1789.5,4.73816647]
[1745456490143,5.587094,1789.9,1789.6,0.12372939]
[1745456491684,5.58670702,1790.0,1789.7,3.91546647]
[1745456492166,6.22678558,1790.1,1789.8,0.89582939]
[1745456492370,5.58671286,1790.0,1789.8,0.89582939]
[1745456493307,5.58690429,1789.9,1789.8,0.12372939]
[1745456493798,5.58671286,1790.0,1789.8,0.12372939]
[1745456494111,5.58671286,1790.0,1789.6,4.68756647]
[1745456494298,5.58671286,1790.0,1789.9,0.12372939]
[1745456494495,5.58671286,1790.0,1789.6,4.68756647]
[1745456494710,5.58681953,1790.0,1789.9,0.12372939]
[1745456494919,5.58681953,1790.0,1789.6,5.45632312]
[1745456494920,5.58681953,1790.0,1789.6,4.68756647]
[1745456495216,5.58649326,1790.1,1789.6,4.68756647]
[1745456495529,5.58672712,1790.0,1789.7,0.12372939]
[1745456495805,5.58672712,1790.0,1789.6,4.68756647]
[1745456496107,5.58672712,1790.0,1789.7,0.59248604]
[1745456496305,5.58672712,1790.0,1789.7,0.12372939]
[1745456496811,5.58672712,1790.0,1789.8,0.12372939]
[1745456497103,5.58649326,1790.1,1789.8,0.12372939]
[1745456497310,11.17301658,1790.1,1789.6,4.68756647]
[1745456497508,11.17301658,1790.1,1789.9,0.12372939]
[1745456497709,5.58649326,1790.1,1789.6,4.68756647]
[1745456497929,0.91544526,1790.4,1790.0,0.12372939]
[1745456498127,0.08994526,1790.4,1790.1,0.7721]
[1745456498427,5.67532495,1790.4,1790.1,0.89582939]
[1745456498923,0.08994526,1790.4,1790.1,0.89582939]
[1745456499225,0.08994526,1790.4,1790.2,3.91546647]
[1745456499581,0.08994526,1790.4,1790.3,0.1223593]
[1745456500004,0.08994526,1790.4,1790.3,0.8944593]
[1745456508584,0.08994526,1790.4,1790.3,3.8944593]
[1745456510825,0.08994526,1790.4,1790.3,9.48011533]
[1745456511028,0.08994526,1790.4,1790.3,11.37825878]
[1745456513033,0.08994526,1790.4,1790.3,12.07825878]
[1745456514131,0.084492,1791.3,1790.9,3.8033]
[1745456514427,0.084492,1791.3,1791.1,3.91546647]
[1745456515024,0.084492,1791.3,1791.2,0.10945002]
[1745456515398,0.084492,1791.3,1791.1,3.91546647]
[1745456515731,0.084492,1791.3,1791.2,0.10938487]
[1745456516449,0.084492,1791.3,1791.1,4.30701312]
[1745456516602,0.084492,1791.3,1791.2,0.10938487]
[1745456516796,0.084492,1791.3,1791.1,4.30701312]
[1745456517004,0.084492,1791.3,1791.2,0.10938487]
[1745456517218,0.084492,1791.3,1791.2,0.55102467]
[1745456517904,0.084492,1791.3,1791.2,0.10938487]
[1745456518302,0.084492,1791.3,1790.9,4.71876647]
[1745456518529,0.084492,1791.3,1791.2,0.10938487]
[1745456519030,5.66713993,1791.3,1790.9,4.71876647]
[1745456519239,0.084492,1791.3,1791.2,0.10938487]
[1745456519403,0.084492,1791.3,1790.9,4.71876647]
[1745456519598,0.084492,1791.3,1791.0,3.10938487]
[1745456522739,5.66707118,1791.3,1791.0,3.10938487]
[1745456522942,0.8104,1791.2,1791.0,0.10938487]
[1745456523804,0.894892,1791.3,1791.0,0.10938487]
[1745456524001,0.084492,1791.3,1791.0,0.86928487]
[1745456524206,0.084492,1791.3,1791.1,3.91546647]
[1745456524432,0.084492,1791.3,1791.2,0.10426902]
[1745456524618,0.084492,1791.3,1791.1,3.91546647]
[1745456524820,0.084492,1791.3,1791.2,0.10426902]
[1745456525042,0.084492,1791.3,1791.1,3.91546647]
[1745456525224,0.084492,1791.3,1791.2,0.10426902]
[1745456525421,0.084492,1791.3,1791.1,4.79440689]
[1745456525608,0.084492,1791.3,1791.2,0.10426902]
[1745456525811,0.084492,1791.3,1791.1,4.79440689]
[1745456526015,0.084492,1791.3,1791.2,0.10426902]
[1745456526336,0.084492,1791.3,1791.2,13.74808354]
[1745456526543,0.084492,1791.3,1791.2,13.85235256]
[1745456526745,0.084492,1791.3,1791.2,13.74808354]
[1745456527446,0.084492,1791.3,1791.2,14.44808354]
[1745456528943,0.084492,1791.3,1791.2,10.53261707]
[1745456530030,0.084492,1791.3,1791.2,14.44808354]
[1745456530618,0.1,1791.4,1791.3,9.34243782]
[1745456530813,0.1,1791.4,1791.3,9.58688196]
[1745456532238,0.1,1791.4,1791.3,15.16941978]
[1745456534058,0.1,1791.4,1791.3,9.58688196]
[1745456534364,0.1,1791.4,1791.3,15.16941978]
[1745456536143,0.1,1791.4,1791.3,19.08488625]
[1745456541869,0.1,1791.4,1791.3,12.74244843]
[1745456542188,0.1,1791.4,1791.2,1.18986759]
[1745456542468,0.8164,1791.3,1791.1,3.91546647]
[1745456543624,6.39905819,1791.3,1790.9,4.41546647]
[1745456544561,5.58287962,1791.2,1790.9,4.41546647]
[1745456544764,0.8164,1791.1,1790.9,4.41546647]
[1745456545461,0.8164,1791.1,1790.9,4.85701312]
[1745456547355,5.68238233,1791.4,1791.0,3.0]
[1745456547356,0.1,1791.4,1791.0,3.0]
[1745456547590,0.1,1791.4,1791.2,3.91546647]
[1745456551673,0.7638,1791.3,1791.1,3.91546647]
[1745456553774,0.1,1791.4,1791.2,3.0]
[1745456553950,0.1,1791.4,1791.3,3.91546647]
[1745456557369,0.8638,1791.4,1791.3,3.91546647]
[1745456557588,0.8638,1791.4,1791.1,4.60701312]
[1745456557750,0.8638,1791.4,1791.2,0.46070131]
[1745456558884,0.8638,1791.4,1791.1,4.60701312]
[1745456560679,6.44615006,1791.4,1791.1,3.91546647]
[1745456561076,0.8638,1791.4,1791.1,3.91546647]
[1745456561693,0.7638,1791.1,1790.9,0.5]
[1745456563270,5.58347292,1791.0,1790.9,0.5]
[1745456563490,7.54031869,1791.0,1790.9,0.5]
[1745456565161,11.45578516,1791.0,1790.9,0.5]
[1745456565362,5.58560468,1790.4,1789.8,3.91546647]
[1745456565664,0.7709,1790.3,1789.9,3.0]
[1745456565971,0.7709,1790.3,1789.9,3.69154665]
[1745456566172,6.35659661,1790.3,1789.9,3.69154665]
[1745456566388,6.35659661,1790.3,1789.9,0.69154665]
[1745456566601,6.35659661,1790.3,1789.9,3.69154665]
[1745456566796,5.58650824,1790.1,1789.6,3.91546647]
[1745456567003,5.58612634,1790.2,1789.6,3.91546647]
[1745456567177,5.58612634,1790.2,1789.7,3.0]
[1745456567377,5.58612634,1790.2,1789.8,3.91546647]
[1745456567578,5.58630427,1790.1,1789.8,3.91546647]
[1745456568110,6.78044839,1790.2,1789.8,3.91546647]
[1745456568317,5.58637341,1790.1,1789.8,3.91546647]
[1745456568482,6.78044771,1790.2,1789.8,3.91546647]
[1745456569114,11.56144393,1790.2,1789.7,3.91546647]
[1745456569411,1.15614439,1790.1,1789.7,3.91546647]
[1745456570201,4.781,1790.2,1789.7,3.91546647]
[1745456570202,5.58607754,1790.2,1789.7,3.91546647]
[1745456570402,6.35684448,1790.3,1789.6,8.58772591]
[1745456570621,5.5859923,1790.2,1789.7,3.91546647]
[1745456571410,10.3669923,1790.2,1789.7,3.91546647]
[1745456571937,4.781,1790.2,1789.7,9.50296523]
[1745456572224,4.781,1790.2,1789.7,11.31203262]
[1745456572385,4.781,1790.2,1789.7,5.72453386]
[1745456572774,10.36718017,1790.2,1789.7,5.72453386]
[1745456573006,10.36718017,1790.2,1789.7,3.91546647]
[1745456573007,5.58648113,1790.1,1789.7,3.91546647]
[1745456573310,0.8255,1790.0,1789.7,3.91546647]
[1745456573807,6.4126175,1789.9,1789.5,3.91546647]
[1745456575384,0.8255,1789.9,1789.5,3.91546647]
[1745456576812,0.8255,1789.9,1789.6,0.11021566]
[1745456577659,5.58742844,1789.8,1789.6,0.11021566]
[1745456577820,6.41302863,1789.7,1789.6,0.11021566]
[1745456578186,5.5878466,1789.6,1789.4,0.5]
[1745456578419,6.41365311,1789.5,1789.4,0.5]
[1745456579790,6.96365311,1789.5,1789.4,0.5]
[1745456579997,8.21880308,1789.5,1789.4,0.5]
[1745456584418,11.21880308,1789.5,1789.4,0.5]
[1745456586550,10.66880308,1789.5,1789.4,0.5]
[1745456586736,7.66880308,1789.5,1789.4,0.5]
[1745456586931,12.45280308,1789.5,1789.4,0.5]
[1745456589228,6.03914997,1789.5,1789.4,0.5]
[1745456589711,6.03914997,1789.5,1789.4,0.63179946]
[1745456591123,16.33796955,1789.5,1789.4,0.63179946]
[1745456591454,12.97250308,1789.5,1789.4,0.5]
[1745456591811,7.63850308,1789.5,1789.4,0.5]
[1745456592011,12.97350308,1789.5,1789.4,0.5]
[1745456592511,19.88896955,1789.5,1789.4,0.5]
[1745456592847,5.59006164,1788.9,1788.5,0.7589]
[1745456593029,0.7952,1788.9,1788.5,0.7589]
[1745456593221,10.37485403,1789.0,1788.6,0.13264816]
[1745456593422,5.59045954,1788.8,1788.6,0.13264816]
[1745456593610,6.70852136,1788.8,1788.6,0.13264816]
[1745456593811,1.11806182,1788.8,1788.6,0.13264816]
[1745456594121,5.59034685,1788.8,1788.6,0.13264816]
[1745456594458,5.59002739,1788.9,1788.4,0.7589]
[1745456594752,5.59034764,1788.8,1788.4,0.7589]
[1745456595049,5.59034764,1788.8,1788.5,0.13486842]
[1745456595237,6.70838946,1788.8,1788.5,0.13486842]
[1745456595436,1.11804182,1788.8,1788.5,0.13486842]
[1745456595614,11.18052873,1788.9,1788.5,0.13486842]
[1745456595818,5.59035865,1788.8,1788.5,0.13486842]
[1745456596237,5.59023633,1788.9,1788.5,0.13486842]
[1745456596762,10.37488496,1789.0,1788.5,4.05033489]
[1745456596970,4.784,1789.3,1788.9,3.91546647]
[1745456597128,4.784,1789.3,1789.0,0.13793806]
[1745456597328,4.784,1789.3,1789.1,0.8126]
[1745456597555,4.784,1789.3,1789.2,0.13754612]
[1745456597764,4.784,1789.3,1789.1,4.72806647]
[1745456598055,4.784,1789.3,1789.2,0.13754612]
[1745456598445,4.784,1789.3,1789.1,4.72806647]
[1745456598651,4.784,1789.3,1789.2,0.13754612]
[1745456599061,4.784,1789.3,1789.1,4.72806647]
[1745456599230,4.784,1789.3,1789.2,0.13754612]
[1745456599642,27.9566398,1789.6,1789.1,5.20087312]
[1745456599851,4.784,1789.8,1789.3,3.91546647]
[1745456600364,4.784,1789.8,1789.4,0.13415047]
[1745456600566,4.784,1789.8,1789.5,4.72806647]
[1745456600755,6.41799319,1790.1,1789.6,0.13388935]
[1745456600957,4.784,1789.9,1789.6,0.13388935]
[1745456604659,5.58752863,1789.7,1789.6,0.13388935]
[1745456604977,5.5877713,1789.7,1789.6,0.1154493]
[1745456605173,5.58786579,1789.6,1789.2,0.8126]
[1745456605345,5.58786579,1789.6,1789.3,0.1154493]
[1745456605551,11.17599334,1789.6,1789.3,0.1154493]
[1745456605764,5.58786579,1789.6,1789.3,0.1154493]
[1745456605947,4.783,1789.5,1789.3,0.1154493]
[1745456606271,5.82009612,1789.5,1789.1,3.0]
[1745456606450,4.783,1789.5,1789.4,0.1154493]
[1745456606776,10.37117486,1789.5,1789.4,0.1154493]
[1745456607072,10.37117486,1789.5,1789.1,3.0]
[1745456607273,10.37117486,1789.5,1789.4,0.1154493]
[1745456607480,10.37117486,1789.5,1789.1,3.0]
[1745456607639,10.37117486,1789.5,1789.4,0.1154493]
[1745456607840,6.3789136,1789.5,1789.1,3.0]
[1745456608180,4.783,1789.5,1789.1,3.0]
[1745456608351,4.783,1789.5,1789.2,0.1154493]
[1745456608539,4.783,1789.5,1789.1,3.0]
[1745456608739,4.783,1789.5,1789.2,0.1154493]
[1745456608939,6.42037773,1789.3,1788.7,0.8126]
[1745456609141,5.58944319,1789.1,1788.8,0.1154493]
[1745456609443,5.58982624,1789.0,1788.8,0.1154493]
[1745456609641,7.18606027,1789.0,1788.8,0.1154493]
[1745456609878,7.18606027,1789.0,1788.5,3.8126]
[1745456610171,7.18606027,1789.0,1788.5,0.8126]
[1745456610340,1.59623403,1789.0,1788.6,0.11253584]
[1745456610540,1.59623403,1789.0,1788.6,4.02800231]
[1745456611268,1.59623403,1789.0,1788.6,0.11253584]
[1745456611482,5.59027993,1788.9,1788.6,0.11253584]
[1745456611684,5.590364,1788.8,1788.6,0.11253584]
[1745456612381,5.59065242,1788.7,1788.6,0.11253584]
[1745456612573,5.59065242,1788.7,1788.3,0.7904]
[1745456612771,5.59065242,1788.7,1788.4,0.11253584]
[1745456612975,6.70875406,1788.7,1788.4,0.11253584]
[1745456613505,1.11810164,1788.7,1788.4,0.11253584]
[1745456614873,5.59018146,1788.9,1788.4,0.11253584]
[1745456615479,11.1804758,1788.9,1788.4,0.11253584]
[1745456615664,11.1804991,1788.9,1788.4,0.11253584]
[1745456615863,0.8319,1789.0,1788.4,0.11253584]
[1745456615864,4.67337828,1788.8,1788.4,0.11253584]
[1745456616068,11.2057946,1789.0,1788.4,1.20722682]
[1745456616754,11.2057946,1789.0,1788.4,1.09469098]
[1745456616958,5.59002934,1788.9,1788.4,1.09469098]
[1745456617203,4.784,1789.0,1788.7,4.45208612]
[1745456617381,4.784,1789.0,1788.8,0.90293584]
[1745456620099,11.15491405,1789.0,1788.8,0.11253584]
[1745456620267,12.19226436,1789.0,1788.8,0.11253584]
[1745456620466,12.19226436,1789.0,1788.5,5.25418612]
[1745456620787,11.15491405,1789.0,1788.5,5.25418612]
[1745456620987,11.15491405,1789.0,1788.6,0.11253584]
[1745456621384,11.15476741,1789.0,1788.6,0.11253584]
[1745456621700,5.59006121,1788.9,1788.6,0.11253584]
[1745456622274,4.784,1789.0,1788.6,0.11253584]
[1745456622477,6.36988639,1789.3,1788.7,10.84466696]
[1745456622478,5.566,1789.3,1788.7,10.84466696]
[1745456622676,5.566,1789.3,1788.8,3.0]
[1745456622876,5.566,1789.3,1788.8,3.1176205]
[1745456623620,11.15479346,1789.3,1788.8,3.1176205]
[1745456623784,5.58919944,1789.2,1788.8,3.1176205]
[1745456624202,16.7438373,1789.3,1788.8,3.1176205]
[1745456624400,19.53491665,1789.3,1788.8,3.1176205]
[1745456624596,13.94587281,1789.3,1788.8,3.1176205]
[1745456624801,19.53490116,1789.3,1788.8,3.1176205]
[1745456625005,5.58914996,1789.2,1788.8,3.1176205]
[1745456625190,5.58914996,1789.2,1788.8,3.95480116]
[1745456625394,5.58914996,1789.2,1788.8,0.1176205]
[1745456626404,13.94587281,1789.3,1788.8,0.1176205]
[1745456626607,11.15479346,1789.3,1788.8,0.1176205]
[1745456627203,5.58911042,1789.2,1788.8,0.1176205]
[1745456627366,16.74382191,1789.3,1788.8,0.1176205]
[1745456627572,5.58910242,1789.2,1788.8,0.1176205]
[1745456628108,5.566,1789.3,1788.8,3.1176205]
[1745456628283,4.785,1789.3,1788.9,1.10476205]
[1745456628487,5.58950041,1789.1,1788.8,0.1176205]
[1745456628686,5.58921747,1789.2,1788.8,0.1176205]
[1745456628883,5.58951382,1789.1,1788.8,0.1176205]
[1745456629194,6.34129009,1789.2,1788.8,0.1176205]
[1745456629999,5.58955383,1789.1,1788.8,0.1176205]
[1745456630243,0.55895538,1789.0,1788.8,0.1176205]
[1745456630370,6.34129009,1789.2,1788.8,0.1176205]
[1745456630703,5.58940812,1789.1,1788.8,0.1176205]
[1745456632002,5.58955145,1789.1,1788.8,0.1176205]
[1745456632678,6.34143286,1789.2,1788.8,0.1176205]
[1745456632898,0.7522,1789.2,1788.8,0.1176205]
[1745456633106,5.58971844,1789.0,1788.8,0.1176205]
[1745456633287,0.55897184,1789.0,1788.8,0.1176205]
[1745456633603,6.34146746,1789.2,1788.9,0.11742491]
[1745456633604,6.3414961,1789.2,1788.9,0.11742491]
[1745456633769,11.93086692,1789.2,1788.7,3.90677685]
[1745456633977,5.5895305,1789.1,1788.8,0.11742491]
[1745456634318,6.78263002,1789.1,1788.8,0.11742491]
[1745456634516,6.78263002,1789.1,1788.6,3.90677685]
[1745456634717,6.78263002,1789.1,1788.9,0.11742491]
[1745456635020,6.78263002,1789.1,1789.0,0.11742491]
[1745456635219,6.78263002,1789.1,1788.6,3.90677685]
[1745456635420,6.78263002,1789.1,1788.7,0.11742491]
[1745456635610,6.3414108,1789.2,1788.8,0.793]
[1745456636132,5.58822969,1789.5,1788.9,0.11742491]
[1745456636133,6.3405119,1789.5,1788.9,0.11742491]
[1745456636285,11.1445119,1789.5,1789.1,0.793]
[1745456636894,11.1445119,1789.5,1789.2,0.11657735]
[1745456637106,12.81775436,1789.5,1789.2,0.11657735]
[1745456637289,12.81775436,1789.5,1789.1,0.793]
[1745456637490,12.81775436,1789.5,1789.3,0.11657735]
[1745456637692,12.81775436,1789.5,1789.1,0.793]
[1745456637890,12.81775436,1789.5,1789.4,0.11657735]
[1745456638118,12.81775436,1789.5,1789.1,0.793]
[1745456638305,12.81775436,1789.5,1789.4,0.11657735]
[1745456638713,12.81775436,1789.5,1789.1,0.793]
[1745456638920,12.81775436,1789.5,1789.4,0.11657735]
[1745456639429,5.58846905,1789.4,1789.1,0.793]
[1745456639731,5.58881653,1789.3,1789.2,0.11657735]
[1745456640033,5.58881653,1789.3,1788.9,0.7574]
[1745456640230,7.42913256,1789.4,1789.0,0.11657735]
[1745456640231,1.84062234,1789.4,1789.0,0.11657735]